fUSD/lending_fUSD_20250923
["ID","MTS","AMOUNT","RATE_DAILY","PERIOD"]
[387174601,1758606670085,-405.29105855,0.00020765,2]
[387174602,1758606670094,-460.71208619,0.00020765,2]
[387174603,1758606670104,-400.0,0.00020765,2]
[387174604,1758606670113,-400.0,0.00020765,2]
[387174605,1758606670123,-400.0,0.00020765,2]
[387174606,1758606670132,-400.0,0.00020765,2]
[387174607,1758606670141,-407.79458002,0.00020765,2]
[387174608,1758606670151,-400.0,0.00020765,2]
[387174609,1758606670159,-400.0,0.00020765,2]
[387174610,1758606670169,-400.0,0.00020765,2]
[387174611,1758606670178,-400.0,0.00020765,2]
[387174612,1758606670187,-422.84540271,0.00020765,2]
[387174613,1758606670196,-497.32802439,0.00020765,2]
[387174614,1758606670205,-400.0,0.00020765,2]
[387174615,1758606670214,-199.13986865,0.00020765,2]
[387174616,1758606670223,-400.0,0.00020765,2]
[387174617,1758606670233,-400.0,0.00020765,2]
[387174618,1758606670242,-400.0,0.00020765,2]
[387174619,1758606670251,-400.0,0.00020765,2]
[387174620,1758606670260,-400.0,0.00020765,2]
[387174621,1758606670269,-400.0,0.00020765,2]
[387174622,1758606670278,-232.48,0.00020765,2]
[387174623,1758606670287,-1013.14632879,0.00020765,2]
[387174624,1758606670296,-400.0,0.00020765,2]
[387174625,1758606670305,-400.0,0.00020766,2]
[387174626,1758606670315,-400.0,0.00020766,2]
[387174627,1758606670324,-408.15885918,0.00020766,2]
[387174628,1758606670333,-400.0,0.00020766,2]
[387174629,1758606670342,-546.26,0.00020766,2]
[387174630,1758606670351,-459.17,0.00020766,2]
[387174631,1758606670360,-400.0,0.00020766,2]
[387174632,1758606670369,-594.39,0.00020766,2]
[387174633,1758606670378,-167.146727,0.00020766,2]
[387174634,1758606670387,-400.0,0.00020766,2]
[387174635,1758606670396,-400.0,0.00020766,2]
[387174636,1758606670405,-400.0,0.00020766,2]
[387174637,1758606670414,-413.61,0.00020766,2]
[387174638,1758606670423,-1791.94,0.00020766,2]
[387174639,1758606670432,-400.0,0.00020766,2]
[387174640,1758606670441,-727.44,0.00020766,2]
[387174641,1758606670450,-424.1,0.00020766,2]
[387174642,1758606670459,-680.28,0.00020766,2]
[387174643,1758606670468,-400.0,0.00020766,2]
[387174644,1758606670477,-400.0,0.00020766,2]
[387174645,1758606670487,-740.8,0.00020766,2]
[387174646,1758606670496,-780.25,0.00020766,2]
[387174647,1758606670505,-787.95,0.00020766,2]
[387174648,1758606670514,-400.9,0.00020766,2]
[387174649,1758606670523,-573.0,0.00020766,2]
[387174650,1758606670532,-439.84,0.00020766,2]
[387174651,1758606670541,-807.44,0.00020766,2]
[387174652,1758606670550,-1136.38,0.00020766,2]
[387174653,1758606670559,-2423.02,0.00020766,2]
[387174654,1758606670568,-9774.27257195,0.00020767,2]
[387174655,1758606670577,-560.23,0.00020775,2]
[387174656,1758606670586,-500.0,0.00020775,2]
[387174657,1758606670595,-694.79,0.00020775,2]
[387174658,1758606670605,-229.73846248,0.00020775,2]
[387174659,1758606670615,-500.0,0.00020775,2]
[387174660,1758606670625,-943.76,0.00020775,2]
[387174661,1758606670634,-2000.0,0.0002078,3]
[387174662,1758606670643,-563.0,0.00020797,2]
[387174663,1758606670652,-400.0,0.00020797,2]
[387174664,1758606670662,-400.0,0.00020797,2]
[387174665,1758606670672,-454.75,0.00020797,2]
[387174666,1758606670681,-400.0,0.00020797,2]
[387174667,1758606670691,-604.44,0.00020797,2]
[387174668,1758606670700,-533.49,0.00020797,2]
[387174669,1758606670709,-694.1,0.00020797,2]
[387174670,1758606670718,-400.0,0.00020797,2]
[387174671,1758606670727,-400.0,0.00020797,2]
[387174672,1758606670735,-422.59,0.00020797,2]
[387174673,1758606670744,-400.0,0.00020797,2]
[387174674,1758606670753,-717.78,0.00020797,2]
[387174675,1758606670762,-431.15,0.00020797,2]
[387174676,1758606670771,-400.0,0.00020797,2]
[387174677,1758606670780,-427.27,0.00020797,2]
[387174678,1758606670790,-386.19160072,0.00020797,2]
[387174679,1758606670803,-614.75,0.00020797,2]
[387174680,1758606670812,-416.00366361,0.00020797,2]
[387174681,1758606670821,-517.55,0.00020797,2]
[387174682,1758606670830,-669.49,0.00020797,2]
[387174683,1758606670840,-400.0,0.00020797,2]
[387174684,1758606670849,-400.0,0.00020797,2]
[387174685,1758606670858,-400.0,0.00020797,2]
[387174686,1758606670868,-418.8,0.00020797,2]
[387174687,1758606670880,-573.35,0.00020797,2]
[387174688,1758606670889,-403.2,0.00020797,2]
[387174689,1758606670900,-413.41726363,0.00020797,2]
[387174690,1758606670910,-400.0,0.00020797,2]
[387174691,1758606670919,-400.0,0.00020797,2]
[387174692,1758606670929,-400.0,0.00020797,2]
[387174693,1758606670938,-685.05,0.00020797,2]
[387174694,1758606670947,-400.0,0.00020797,2]
[387174695,1758606670956,-435.99,0.00020797,2]
[387174696,1758606670966,-400.0,0.00020797,2]
[387174697,1758606670975,-592.9,0.00020797,2]
[387174698,1758606670984,-528.93,0.00020797,2]
[387174699,1758606670993,-796.37,0.00020797,2]
[387174700,1758606671002,-400.0,0.00020797,2]
[387174701,1758606671012,-461.3,0.00020797,2]
[387174702,1758606671021,-400.0,0.00020797,2]
[387174703,1758606671030,-400.0,0.00020797,2]
[387174704,1758606671040,-400.0,0.00020797,2]
[387174705,1758606671049,-400.0,0.00020797,2]
[387174706,1758606671059,-400.0,0.00020797,2]
[387174707,1758606671067,-551.65,0.00020797,2]
[387174708,1758606671076,-445.76,0.00020797,2]
[387174709,1758606671085,-620.26,0.00020797,2]
[387174710,1758606671095,-406.67644255,0.00020797,2]
[387174711,1758606671104,-474.03,0.00020797,2]
[387174712,1758606671114,-400.0,0.00020797,2]
[387174713,1758606671122,-400.0,0.00020797,2]
[387174714,1758606671131,-400.0,0.00020797,2]
[387174715,1758606671141,-400.0,0.00020797,2]
[387174716,1758606671150,-400.0,0.00020797,2]
[387174717,1758606671159,-1134.69,0.00020797,2]
[387174718,1758606671168,-553.2,0.00020797,2]
[387174719,1758606671177,-400.0,0.00020797,2]
[387174720,1758606671186,-400.0,0.00020797,2]
[387174721,1758606671195,-560.87,0.00020797,2]
[387174722,1758606671204,-669.97,0.00020797,2]
[387174723,1758606671214,-518.47,0.00020797,2]
[387174724,1758606671224,-603.36,0.00020797,2]
[387174725,1758606671233,-507.24,0.00020797,2]
[387174726,1758606671243,-1226.65,0.00020797,2]
[387174727,1758606671253,-400.0,0.00020797,2]
[387174728,1758606671264,-510.08,0.00020797,2]
[387174729,1758606671273,-400.0,0.00020797,2]
[387174730,1758606671283,-2244.82,0.00020797,2]
[387174731,1758606671291,-3137.54,0.00020797,2]
[387174732,1758606671301,-3479.82,0.00020797,2]
[387174733,1758606671310,-478.17,0.00020797,2]
[387174734,1758606671320,-400.0,0.00020797,2]
[387174735,1758606671329,-1313.4,0.00020797,2]
[387174736,1758606671338,-400.0,0.00020797,2]
[387174737,1758606671347,-766.42,0.00020797,2]
[387174738,1758606671356,-400.0,0.00020797,2]
[387174739,1758606671365,-631.18,0.00020797,2]
[387174740,1758606671375,-150.0,0.00020804,4]
[387174741,1758606671384,-470.21,0.00020816,2]
[387174742,1758606671393,-400.0,0.00020816,2]
[387174743,1758606671402,-402.92649736,0.00020816,2]
[387174744,1758606671411,-400.0,0.00020816,2]
[387174745,1758606671420,-400.0,0.00020816,2]
[387174746,1758606671429,-407.18828179,0.00020816,2]
[387174747,1758606671438,-400.0,0.00020816,2]
[387174748,1758606671447,-479.31,0.00020816,2]
[387174749,1758606671457,-400.0,0.00020816,2]
[387174750,1758606671466,-626.98,0.00020816,2]
[387174751,1758606671476,-400.0,0.00020816,2]
[387174752,1758606671485,-400.0,0.00020816,2]
[387174753,1758606671494,-600.75,0.00020816,2]
[387174754,1758606671504,-400.0,0.00020816,2]
[387174755,1758606671514,-595.41,0.00020816,2]
[387174756,1758606671523,-400.0,0.00020816,2]
[387174757,1758606671533,-400.0,0.00020816,2]
[387174758,1758606671543,-400.0,0.00020816,2]
[387174759,1758606671552,-400.0,0.00020816,2]
[387174760,1758606671561,-400.0,0.00020816,2]
[387174761,1758606671570,-400.0,0.00020816,2]
[387174762,1758606671580,-609.2,0.00020816,2]
[387174763,1758606671590,-400.0,0.00020816,2]
[387174764,1758606671599,-400.0,0.00020816,2]
[387174765,1758606671608,-449.89,0.00020816,2]
[387174766,1758606671617,-411.76963722,0.00020816,2]
[387174767,1758606671626,-400.0,0.00020816,2]
[387174768,1758606671636,-572.39,0.00020816,2]
[387174769,1758606671645,-400.0,0.00020816,2]
[387174770,1758606671654,-710.43,0.00020816,2]
[387174771,1758606671664,-400.0,0.00020816,2]
[387174772,1758606671674,-633.16,0.00020816,2]
[387174773,1758606671683,-400.0,0.00020816,2]
[387174774,1758606671692,-473.7,0.00020816,2]
[387174775,1758606671702,-400.0,0.00020816,2]
[387174776,1758606671711,-400.0,0.00020816,2]
[387174777,1758606671720,-719.16,0.00020816,2]
[387174778,1758606671730,-407.66,0.00020816,2]
[387174779,1758606671739,-619.74,0.00020816,2]
[387174780,1758606671749,-400.0,0.00020816,2]
[387174781,1758606671758,-637.23,0.00020816,2]
[387174782,1758606671767,-474.07,0.00020816,2]
[387174783,1758606671777,-872.07,0.00020816,2]
[387174784,1758606671786,-248.92960072,0.00020816,2]
[387174785,1758606671796,-400.0,0.00020816,2]
[387174786,1758606671809,-1253.57,0.00020816,2]
[387174787,1758606671819,-400.0,0.00020816,2]
[387174788,1758606671828,-400.0,0.00020816,2]
[387174789,1758606671838,-702.37,0.00020816,2]
[387174790,1758606671848,-400.0,0.00020816,2]
[387174791,1758606671858,-400.0,0.00020816,2]
[387174792,1758606671868,-400.0,0.00020816,2]
[387174793,1758606671878,-400.0,0.00020816,2]
[387174794,1758606671888,-400.0,0.00020816,2]
[387174795,1758606671898,-400.0,0.00020816,2]
[387174796,1758606671908,-803.52,0.00020816,2]
[387174797,1758606671918,-623.72,0.00020816,2]
[387174798,1758606671928,-758.11,0.00020816,2]
[387174799,1758606671938,-400.0,0.00020816,2]
[387174800,1758606671948,-400.0,0.00020816,2]
[387174801,1758606671957,-944.55,0.00020816,2]
[387174802,1758606671967,-887.18,0.00020816,2]
[387174803,1758606671978,-400.0,0.00020817,2]
[387174804,1758606671988,-400.0,0.00020817,2]
[387174805,1758606671997,-400.0,0.00020817,2]
[387174806,1758606672007,-400.0,0.00020817,2]
[387174807,1758606672016,-400.0,0.00020817,2]
[387174808,1758606672025,-240.61226463,0.00020817,2]
[387174809,1758606672035,-400.0,0.00020817,2]
[387174810,1758606672044,-400.0,0.00020817,2]
[387174811,1758606672054,-400.0,0.00020817,2]
[387174812,1758606672063,-400.0,0.00020817,2]
[387174813,1758606672073,-400.0,0.00020817,2]
[387174814,1758606672083,-387.66753256,0.00020817,2]
[387174815,1758606672092,-400.0,0.00020817,2]
[387174816,1758606672102,-400.0,0.00020817,2]
[387174817,1758606672111,-400.0,0.00020817,2]
[387174818,1758606672121,-400.0,0.00020817,2]
[387174819,1758606672131,-400.0,0.00020817,2]
[387174820,1758606672141,-400.0,0.00020817,2]
[387174821,1758606672151,-400.0,0.00020817,2]
[387174822,1758606672160,-400.0,0.00020817,2]
[387174823,1758606672170,-400.0,0.00020817,2]
[387174824,1758606672179,-502.61,0.00020817,2]
[387174825,1758606672189,-1317.09,0.00020817,2]
[387174826,1758606672199,-1372.63,0.00020817,2]
[387174827,1758606672209,-400.0,0.00020817,2]
[387174828,1758606672218,-400.0,0.00020817,2]
[387174829,1758606672229,-400.0,0.00020817,2]
[387174830,1758606672238,-543.44,0.00020817,2]
[387174831,1758606672248,-867.38,0.00020817,2]
[387174832,1758606672258,-400.0,0.00020817,2]
[387174833,1758606672267,-400.0,0.00020817,2]
[387174834,1758606672277,-1566.28,0.00020817,2]
[387174835,1758606672286,-150.0,0.00020818,2]
[387174836,1758606672296,-200.0,0.00020818,2]
[387174837,1758606672306,-500.0,0.00020818,2]
[387174838,1758606672315,-158.54199819,0.00020818,2]
[387174839,1758606672325,-1508.0,0.00020818,2]
[387174840,1758606672335,-500.0,0.00020818,2]
[387174841,1758606672344,-167.21384345,0.00020818,2]
[387174842,1758606672354,-150.0,0.00020818,2]
[387174843,1758606672364,-389.52975323,0.00020818,2]
[387174844,1758606672373,-500.0,0.00020818,2]
[387174845,1758606672383,-500.0,0.00020818,2]
[387174846,1758606672393,-280.37734476,0.00020818,2]
[387174847,1758606672402,-500.0,0.00020818,2]
[387174848,1758606672412,-500.0,0.00020818,2]
[387174849,1758606672422,-466.0,0.00020818,2]
[387174850,1758606672431,-447.0,0.00020818,2]
[387174851,1758606672441,-500.0,0.00020818,2]
[387174852,1758606672450,-400.0,0.00020818,2]
[387174853,1758606672460,-400.0,0.00020818,2]
[387174854,1758606672469,-403.898064,0.00020818,2]
[387174855,1758606672479,-493.99059013,0.00020818,2]
[387174856,1758606672488,-461.32782471,0.00020818,2]
[387174857,1758606672497,-492.40742719,0.00020818,2]
[387174858,1758606672507,-403.17,0.00020818,2]
[387174859,1758606672516,-400.0,0.00020818,2]
[387174860,1758606672526,-400.0,0.00020818,2]
[387174861,1758606672535,-405.30258897,0.00020818,2]
[387174862,1758606672545,-404.48975375,0.00020818,2]
[387174863,1758606672555,-400.0,0.00020818,2]
[387174864,1758606672564,-400.0,0.00020818,2]
[387174865,1758606672573,-400.0,0.00020818,2]
[387174866,1758606672583,-400.0,0.00020818,2]
[387174867,1758606672593,-422.99,0.00020818,2]
[387174868,1758606672602,-400.0,0.00020818,2]
[387174869,1758606672611,-400.0,0.00020818,2]
[387174870,1758606672621,-407.88798332,0.00020818,2]
[387174871,1758606672630,-400.0,0.00020818,2]
[387174872,1758606672640,-400.0,0.00020818,2]
[387174873,1758606672649,-511.25,0.00020818,2]
[387174874,1758606672659,-400.0,0.00020818,2]
[387174875,1758606672670,-191.56398083,0.00020818,2]
[387174876,1758606672679,-400.0,0.00020818,2]
[387174877,1758606672689,-400.0,0.00020818,2]
[387174878,1758606672699,-405.10149857,0.00020818,2]
[387174879,1758606672708,-400.0,0.00020818,2]
[387174880,1758606672718,-404.82409251,0.00020818,2]
[387174881,1758606672728,-400.0,0.00020818,2]
[387174882,1758606672737,-404.31625973,0.00020818,2]
[387174883,1758606672747,-400.0,0.00020818,2]
[387174884,1758606672756,-400.0,0.00020818,2]
[387174885,1758606672766,-400.0,0.00020818,2]
[387174886,1758606672775,-400.0,0.00020818,2]
[387174887,1758606672785,-400.0,0.00020818,2]
[387174888,1758606672794,-404.53348751,0.00020818,2]
[387174889,1758606672807,-400.0,0.00020818,2]
[387174890,1758606672816,-404.11691026,0.00020818,2]
[387174891,1758606672826,-407.31634743,0.00020818,2]
[387174892,1758606672835,-446.07519617,0.00020818,2]
[387174893,1758606672846,-403.04228699,0.00020818,2]
[387174894,1758606672856,-406.77001686,0.00020818,2]
[387174895,1758606672866,-466.91984898,0.00020818,2]
[387174896,1758606672876,-400.0,0.00020818,2]
[387174897,1758606672886,-400.0,0.00020818,2]
[387174898,1758606672896,-400.0,0.00020818,2]
[387174899,1758606672905,-400.0,0.00020818,2]
[387174900,1758606672914,-400.0,0.00020818,2]
[387174901,1758606672924,-400.0,0.00020818,2]
[387174902,1758606672933,-404.70106316,0.00020818,2]
[387174903,1758606672943,-400.0,0.00020818,2]
[387174904,1758606672953,-500.0,0.00020818,14]
[387174905,1758606672962,-400.0,0.00020818,2]
[387174906,1758606672972,-400.0,0.00020818,2]
[387174907,1758606672982,-400.0,0.00020818,2]
[387174908,1758606672992,-400.0,0.00020818,2]
[387174909,1758606673002,-404.42217406,0.00020818,2]
[387174910,1758606673012,-403.42880704,0.00020818,2]
[387174911,1758606673021,-400.0,0.00020818,2]
[387174912,1758606673034,-400.0,0.00020818,2]
[387174913,1758606673044,-400.0,0.00020818,2]
[387174914,1758606673054,-411.68,0.00020818,2]
[387174915,1758606673063,-400.0,0.00020818,2]
[387174916,1758606673073,-191.49651579,0.00020818,2]
[387174917,1758606673083,-400.0,0.00020818,2]
[387174918,1758606673092,-400.0,0.00020818,2]
[387174919,1758606673101,-400.0,0.00020818,2]
[387174920,1758606673111,-400.0,0.00020818,2]
[387174921,1758606673121,-403.89341752,0.00020818,2]
[387174922,1758606673130,-544.76521059,0.00020818,2]
[387174923,1758606673139,-406.80286835,0.00020818,2]
[387174924,1758606673149,-403.42170406,0.00020818,2]
[387174925,1758606673159,-400.0,0.00020818,2]
[387174926,1758606673168,-400.0,0.00020818,2]
[387174927,1758606673177,-400.0,0.00020818,2]
[387174928,1758606673187,-400.0,0.00020818,2]
[387174929,1758606673197,-400.0,0.00020818,2]
[387174930,1758606673207,-400.0,0.00020818,2]
[387174931,1758606673216,-400.0,0.00020818,2]
[387174932,1758606673227,-400.0,0.00020818,2]
[387174933,1758606673236,-400.0,0.00020818,2]
[387174934,1758606673246,-480.69821016,0.00020818,2]
[387174935,1758606673256,-400.0,0.00020818,2]
[387174936,1758606673266,-400.0,0.00020818,2]
[387174937,1758606673275,-400.0,0.00020818,2]
[387174938,1758606673285,-400.0,0.00020818,2]
[387174939,1758606673295,-400.0,0.00020818,2]
[387174940,1758606673305,-400.0,0.00020818,2]
[387174941,1758606673315,-400.0,0.00020818,2]
[387174942,1758606673326,-400.0,0.00020818,2]
[387174943,1758606673335,-400.0,0.00020818,2]
[387174944,1758606673345,-400.0,0.00020818,2]
[387174945,1758606673355,-400.0,0.00020818,2]
[387174946,1758606673365,-400.0,0.00020818,2]
[387174947,1758606673374,-400.0,0.00020818,2]
[387174948,1758606673384,-430.64,0.00020818,2]
[387174949,1758606673393,-400.0,0.00020818,2]
[387174950,1758606673403,-400.0,0.00020818,2]
[387174951,1758606673413,-400.0,0.00020818,2]
[387174952,1758606673423,-400.0,0.00020818,2]
[387174953,1758606673433,-400.0,0.00020818,2]
[387174954,1758606673442,-400.0,0.00020818,2]
[387174955,1758606673452,-400.0,0.00020818,2]
[387174956,1758606673462,-429.28,0.00020818,2]
[387174957,1758606673471,-400.0,0.00020818,2]
[387174958,1758606673482,-400.0,0.00020818,2]
[387174959,1758606673492,-720.6,0.00020818,2]
[387174960,1758606673501,-400.0,0.00020818,2]
[387174961,1758606673511,-400.0,0.00020818,2]
[387174962,1758606673520,-400.0,0.00020818,2]
[387174963,1758606673530,-263.839312,0.00020818,2]
[387174964,1758606673540,-400.0,0.00020818,2]
[387174965,1758606673549,-400.0,0.00020818,2]
[387174966,1758606673559,-264.90867826,0.00020818,2]
[387174967,1758606673747,-540.18,0.00020818,2]
[387174968,1758606673758,-176.98424258,0.00020818,2]
[387174969,1758606673767,-400.0,0.00020818,2]
[387174970,1758606673777,-500.48,0.00020818,2]
[387174971,1758606673787,-460.67,0.00020818,2]
[387174972,1758606673797,-400.0,0.00020818,2]
[387174973,1758606673811,-400.0,0.00020818,2]
[387174974,1758606673820,-400.0,0.00020818,2]
[387174975,1758606673830,-400.0,0.00020818,2]
[387174976,1758606673839,-400.0,0.00020818,2]
[387174977,1758606673850,-400.0,0.00020818,2]
[387174978,1758606673860,-166.29,0.00020818,2]
[387174979,1758606673869,-308.89385653,0.00020818,2]
[387174980,1758606673879,-400.0,0.00020818,2]
[387174981,1758606673889,-400.0,0.00020818,2]
[387174982,1758606673899,-400.0,0.00020818,2]
[387174983,1758606673908,-400.0,0.00020818,2]
[387174984,1758606673918,-400.0,0.00020818,2]
[387174985,1758606673927,-707.53,0.00020818,2]
[387174986,1758606673936,-400.0,0.00020818,2]
[387174987,1758606673945,-400.0,0.00020818,2]
[387174988,1758606673954,-403.42,0.00020818,2]
[387174989,1758606673964,-520.4,0.00020818,2]
[387174990,1758606673974,-400.0,0.00020818,2]
[387174991,1758606673983,-400.0,0.00020818,2]
[387174992,1758606673993,-400.0,0.00020818,2]
[387174993,1758606674002,-400.0,0.00020818,2]
[387174994,1758606674011,-400.0,0.00020818,2]
[387174995,1758606674020,-400.0,0.00020818,2]
[387174996,1758606674029,-400.0,0.00020818,2]
[387174997,1758606674038,-400.0,0.00020818,2]
[387174998,1758606674047,-214.61,0.00020818,2]
[387174999,1758606674057,-400.0,0.00020818,2]
[387175000,1758606674066,-400.0,0.00020818,2]
[387175001,1758606674075,-400.0,0.00020818,2]
[387175002,1758606674084,-400.0,0.00020818,2]
[387175003,1758606674093,-431.34,0.00020818,2]
[387175004,1758606674103,-400.0,0.00020818,2]
[387175005,1758606674112,-205.34,0.00020818,2]
[387175006,1758606674121,-400.0,0.00020818,2]
[387175007,1758606674131,-424.74115724,0.00020818,2]
[387175008,1758606674140,-400.0,0.00020818,2]
[387175009,1758606674149,-400.0,0.00020818,2]
[387175010,1758606674158,-548.28676272,0.00020818,2]
[387175011,1758606674167,-400.0,0.00020818,2]
[387175012,1758606674177,-400.0,0.00020818,2]
[387175013,1758606674186,-400.0,0.00020818,2]
[387175014,1758606674195,-555.13,0.00020818,2]
[387175015,1758606674204,-400.0,0.00020818,2]
[387175016,1758606674214,-386.31361433,0.00020818,2]
[387175017,1758606674224,-400.0,0.00020818,2]
[387175018,1758606674233,-400.0,0.00020818,2]
[387175019,1758606674242,-400.0,0.00020818,2]
[387175020,1758606674251,-400.0,0.00020818,2]
[387175021,1758606674260,-278.81,0.00020818,2]
[387175022,1758606674270,-400.0,0.00020818,2]
[387175023,1758606674279,-400.0,0.00020818,2]
[387175024,1758606674288,-821.12,0.00020818,2]
[387175025,1758606674298,-400.0,0.00020818,2]
[387175026,1758606674308,-400.0,0.00020818,2]
[387175027,1758606674317,-400.0,0.00020818,2]
[387175028,1758606674326,-400.0,0.00020818,2]
[387175029,1758606674335,-400.0,0.00020818,2]
[387175030,1758606674345,-400.0,0.00020818,2]
[387175031,1758606674354,-400.0,0.00020818,2]
[387175032,1758606674364,-400.0,0.00020818,2]
[387175033,1758606674373,-400.0,0.00020818,2]
[387175034,1758606674382,-400.0,0.00020818,2]
[387175035,1758606674391,-400.0,0.00020818,2]
[387175036,1758606674400,-400.0,0.00020818,2]
[387175037,1758606674409,-706.34,0.00020818,2]
[387175038,1758606674418,-400.0,0.00020818,2]
[387175039,1758606674427,-400.0,0.00020818,2]
[387175040,1758606674437,-1759.45,0.00020818,2]
[387175041,1758606674446,-544.21,0.00020818,2]
[387175042,1758606674456,-400.0,0.00020818,2]
[387175043,1758606674465,-400.0,0.00020818,2]
[387175044,1758606674474,-400.0,0.00020818,2]
[387175045,1758606674483,-400.0,0.00020818,2]
[387175046,1758606674493,-400.0,0.00020818,2]
[387175047,1758606674503,-400.0,0.00020818,2]
[387175048,1758606674512,-431.44,0.00020818,2]
[387175049,1758606674521,-568.99,0.00020818,2]
[387175050,1758606674530,-400.0,0.00020818,2]
[387175051,1758606674540,-400.0,0.00020818,2]
[387175052,1758606674549,-517.07,0.00020818,2]
[387175053,1758606674559,-400.0,0.00020818,2]
[387175054,1758606674569,-623.33,0.00020818,2]
[387175055,1758606674578,-400.0,0.00020818,2]
[387175056,1758606674587,-546.18,0.00020818,2]
[387175057,1758606674597,-400.0,0.00020818,2]
[387175058,1758606674606,-400.0,0.00020818,2]
[387175059,1758606674616,-400.0,0.00020818,2]
[387175060,1758606674626,-5720.27,0.00020818,2]
[387175061,1758606674635,-400.0,0.00020818,2]
[387175062,1758606674644,-400.0,0.00020818,2]
[387175063,1758606674653,-440.55,0.00020818,2]
[387175064,1758606674663,-400.0,0.00020818,2]
[387175065,1758606674673,-400.0,0.00020818,2]
[387175066,1758606674682,-667.61,0.00020818,2]
[387175067,1758606674692,-400.0,0.00020818,2]
[387175068,1758606674701,-743.54,0.00020818,2]
[387175069,1758606674710,-461.52,0.00020818,2]
[387175070,1758606674720,-847.6,0.00020818,2]
[387175071,1758606674730,-400.0,0.00020818,2]
[387175072,1758606674739,-400.0,0.00020818,2]
[387175073,1758606674748,-241.57107923,0.00020819,2]
[387175074,1758606674757,-400.0,0.00020819,2]
[387175075,1758606674767,-501.11252843,0.00020821,2]
[387175076,1758606674776,-1000.0,0.00020821,2]
[387175077,1758606674785,-1004.4040655,0.00020821,2]
[387175078,1758606674795,-1000.0,0.00020821,2]
[387175079,1758606674807,-546.54166643,0.00020821,2]
[387175080,1758606674817,-1000.0,0.00020821,2]
[387175081,1758606674826,-1006.46311091,0.00020821,2]
[387175082,1758606674835,-1000.0,0.00020821,2]
[387175083,1758606674845,-1001.40256961,0.00020821,2]
[387175084,1758606674854,-1000.0,0.00020821,2]
[387175085,1758606674863,-1000.0,0.00020821,2]
[387175086,1758606674873,-1002.34226443,0.00020821,2]
[387175087,1758606674883,-250.0,0.0002084,2]
[387175088,1758606674892,-11476.73221229,0.00020851,2]
[387175089,1758606674901,-502.61,0.00020873,2]
[387175090,1758606674911,-560.23,0.00020885,2]
[387175091,1758606674920,-500.0,0.00020885,2]
[387175092,1758606674929,-694.79,0.00020885,2]
[387175093,1758606674938,-550.96,0.00020885,2]
[387175094,1758606674947,-943.76,0.00020885,2]
[387175095,1758606674956,-1680.0,0.00020894,2]
[387175096,1758606674965,-400.0,0.00020939,2]
[387175097,1758606674975,-400.0,0.00020939,2]
[387175098,1758606674984,-400.0,0.00020939,2]
[387175099,1758606674993,-490.21,0.00020939,2]
[387175100,1758606675003,-400.0,0.00020939,2]